bitfinex-derivatives/quotes_ETHF0:USTF0_20260119
["timestamp","ask_amount","ask_price","bid_price","bid_amount"]
[1768799991391,4.64009226,3201.6,3200.0,3.44342472]
[1768799991587,0.97236057,3201.5,3200.0,3.44342472]
[1768799991885,0.97236057,3201.4,3200.0,3.44342472]
[1768799992091,0.97236057,3201.3,3200.0,3.44342472]
[1768799992289,3.53428626,3201.6,3200.0,3.44342472]
[1768799992491,0.97225695,3201.5,3200.0,3.44342472]
[1768799992785,3.53428626,3201.6,3200.0,3.44342472]
[1768799992981,4.48556559,3201.5,3200.0,3.44342472]
[1768799993181,0.97227354,3201.4,3200.0,3.44342472]
[1768799993383,0.97227354,3201.3,3200.0,3.44342472]
[1768799993691,3.51329205,3201.5,3200.0,3.44342472]
[1768799993884,0.97222327,3201.4,3200.0,3.44342472]
[1768799994086,3.51329205,3201.5,3200.0,3.44342472]
[1768799994287,0.97219155,3201.4,3200.0,3.44342472]
[1768799994493,3.51329205,3201.5,3200.0,3.44342472]
[1768799994685,0.97220174,3201.4,3200.0,3.44342472]
[1768799994985,3.51329205,3201.5,3200.0,3.44342472]
[1768799995183,0.97220078,3201.4,3200.0,3.44342472]
[1768799995387,3.51329205,3201.5,3200.0,3.44342472]
[1768799995587,0.97218583,3201.4,3200.0,3.44342472]
[1768799995788,3.51329205,3201.5,3200.0,3.44342472]
[1768799996093,0.97218721,3201.4,3200.0,3.44342472]
[1768799996293,0.00304701,3201.6,3200.0,3.44342472]
[1768799996494,0.97221638,3201.5,3200.0,3.44342472]
[1768799996685,0.97221638,3201.4,3200.0,3.44342472]
[1768799996890,0.00304701,3201.6,3200.0,3.44342472]
[1768799997094,0.97221717,3201.5,3200.0,3.44342472]
[1768799997394,0.97221717,3201.4,3200.0,3.44342472]
[1768799997596,0.00304701,3201.6,3200.0,3.44342472]
[1768799997788,0.9722339,3201.5,3200.0,3.44342472]
[1768799998092,0.9722339,3201.4,3200.0,3.44342472]
[1768799998392,0.00304701,3201.6,3200.0,3.44342472]
[1768799998587,0.97221818,3201.5,3200.0,3.44342472]
[1768799998787,0.00304701,3201.6,3200.0,3.44342472]
[1768799998788,0.97221818,3201.4,3200.0,3.44342472]
[1768799998988,0.00304701,3201.6,3200.0,3.44342472]
[1768799999193,3.51329205,3201.4,3199.8,3.52540916]
[1768799999393,3.51329205,3201.4,3200.1,1.805]
[1768800000095,3.51329205,3201.4,3199.8,3.52540916]
[1768800000394,3.51329205,3201.4,3199.9,4.93]
[1768800000594,3.51329205,3201.4,3200.0,1.805]
[1768800001288,3.51329205,3201.2,3200.1,1.805]
[1768800001492,3.51329205,3201.2,3199.8,3.36908916]
[1768800001789,3.51329205,3201.2,3199.9,1.805]
[1768800002693,3.51329205,3201.0,3199.9,1.805]
[1768800002882,3.51329205,3201.0,3199.8,0.0040055]
[1768800003085,3.51329205,3201.0,3199.9,1.805]
[1768800003884,3.51329205,3201.0,3199.8,0.0040055]
[1768800004088,4.48519401,3200.9,3199.8,0.0040055]
[1768800004390,3.51329205,3200.9,3199.8,0.0040055]
[1768800008695,3.51329205,3200.6,3198.7,3.36508366]
[1768800008900,3.51329205,3200.6,3198.8,1.804]
[1768800009394,3.51329205,3200.4,3198.9,1.804]
[1768800009800,3.51329205,3200.4,3198.9,0.00382779]
[1768800010001,3.51329205,3200.4,3198.9,1.80782779]
[1768800010297,3.51329205,3200.2,3197.9,3.36508366]
[1768800010490,3.51329205,3200.0,3198.1,3.36508366]
[1768800010691,0.0046853,3199.4,3198.1,3.36508366]
[1768800011198,0.0046853,3199.4,3198.1,3.36774942]
[1768800011493,0.0046853,3199.4,3198.3,3.36508366]
[1768800011694,0.0046853,3199.4,3198.7,3.36508366]
[1768800011895,3.51329205,3200.4,3198.8,3.125]
[1768800012096,3.51329205,3200.4,3198.9,1.805]
[1768800013299,3.51329205,3200.4,3199.3,0.0046853]
[1768800013904,3.51329205,3200.9,3199.3,0.0046853]
[1768800014089,0.96843223,3200.8,3199.3,0.0046853]
[1768800014295,3.51329205,3200.8,3199.3,0.0046853]
[1768800016300,3.51329205,3200.8,3199.3,3.36976896]
[1768800016495,3.51329205,3201.4,3199.3,3.36976896]
[1768800016690,3.51329205,3201.2,3199.3,3.36976896]
[1768800016894,0.96826262,3201.3,3199.3,0.0046853]
[1768800016895,3.51329205,3200.9,3199.3,0.0046853]
[1768800017793,3.51329205,3200.9,3199.3,3.36976896]
[1768800021306,3.51329205,3201.4,3199.3,3.36976896]
[1768800021605,4.48174715,3201.3,3199.3,3.36976896]
[1768800021804,3.51329205,3201.3,3199.3,3.36976896]
[1768800022204,3.51329205,3201.3,3199.6,3.36508366]
[1768800022714,0.00304701,3201.6,3199.6,3.36508366]
[1768800023008,3.3333869,3201.6,3199.6,3.36508366]
[1768800023706,3.3333869,3201.6,3199.8,3.30425092]
[1768800024108,3.3333869,3201.6,3199.9,8.23425092]
[1768800025206,3.3333869,3201.6,3200.0,3.30425092]
[1768800026102,3.3333869,3201.6,3200.1,8.23425092]
[1768800027403,0.00304701,3201.6,3200.2,3.30425092]
[1768800031000,0.00304701,3201.6,3200.1,5.08631]
[1768800031001,0.00304701,3201.6,3200.5,3.30425092]
[1768800031206,0.00304701,3201.6,3200.5,3.30665329]
[1768800032206,3.33033989,3202.4,3200.5,3.30665329]
[1768800032614,3.33033989,3203.0,3200.9,3.30425092]
[1768800032803,3.33033989,3203.0,3201.0,5.10825092]
[1768800033008,4.89214603,3202.5,3201.1,4.9336853]
[1768800033208,4.89461509,3202.5,3201.1,4.9336853]
[1768800035118,4.89214603,3202.4,3201.1,4.9336853]
[1768800036320,3.33033989,3202.4,3201.1,4.9336853]
[1768800036511,3.33033989,3202.4,3201.1,6.49549144]
[1768800037617,4.89214603,3202.4,3201.1,4.9336853]
[1768800037818,3.33033989,3202.4,3201.1,4.9336853]
[1768800038323,3.33033989,3202.4,3201.2,1.803]
[1768800040612,5.02461335,3202.2,3201.1,0.0046853]
[1768800040918,1.56180614,3201.9,3201.1,1.8076853]
[1768800044226,1.56180614,3201.9,3201.1,0.0046853]
[1768800044428,3.46280721,3202.2,3201.1,0.0046853]
[1768800044727,1.56180614,3202.0,3201.1,0.0046853]
[1768800045429,1.56180614,3202.2,3201.1,0.0046853]
[1768800045630,5.02461335,3202.2,3201.1,0.0046853]
[1768800045832,3.46280721,3202.1,3201.1,0.0046853]
[1768800046222,1.56180614,3201.9,3201.1,0.0046853]
[1768800048427,1.56180614,3202.2,3201.1,0.0046853]
[1768800050727,1.56180614,3202.3,3201.1,0.0046853]
[1768800051128,1.56180614,3202.4,3201.1,0.0046853]
[1768800052423,3.62146627,3202.5,3201.2,1.56180614]
[1768800052622,0.00246906,3202.5,3201.5,1.56180614]
[1768800052828,0.00246906,3202.5,3201.3,3.47900833]
[1768800055731,0.00246906,3202.5,3201.5,5.04081447]
[1768800057628,0.00246906,3202.5,3201.5,3.47900833]
[1768800058034,0.00246906,3202.5,3201.6,1.802]
[1768800059027,1.56180614,3202.4,3201.1,3.48369363]
[1768800059233,5.03193848,3202.4,3201.2,1.802]
[1768800059636,3.47013234,3202.4,3201.2,3.36380614]
[1768800059837,0.00246906,3202.5,3201.2,1.802]
[1768800060027,0.00246906,3202.5,3201.2,3.36380614]
[1768800060222,0.00246906,3202.5,3201.2,1.802]
[1768800060426,0.97054262,3202.4,3201.2,1.802]
[1768800060627,5.03193848,3202.4,3201.2,1.802]
[1768800060837,5.03193848,3202.4,3201.1,0.0046853]
[1768800061039,5.03193848,3202.4,3201.2,1.802]
[1768800061334,5.03193848,3202.4,3201.3,1.802]
[1768800062335,0.00246906,3202.5,3201.3,1.802]
[1768800062635,0.97075892,3202.4,3201.3,1.802]
[1768800062835,0.00246906,3202.5,3201.3,1.802]
[1768800063034,0.97076023,3202.4,3201.3,1.802]
[1768800063233,1.56180614,3202.4,3201.3,1.802]
[1768800063433,3.47013234,3202.3,3201.3,1.802]
[1768800063938,1.56180614,3202.1,3201.1,1.8066853]
[1768800064540,1.56180614,3202.1,3201.1,0.0046853]
[1768800064730,1.56180614,3202.1,3201.1,1.8066853]
[1768800065826,3.47013234,3202.3,3201.1,1.8066853]
[1768800066138,1.56180614,3202.1,3201.1,1.8066853]
[1768800066741,3.47013234,3202.4,3201.1,1.8066853]
[1768800066943,1.56180614,3202.3,3201.1,1.8066853]
[1768800067149,1.56180614,3202.3,3201.1,0.0046853]
[1768800067337,1.56180614,3202.3,3201.1,1.8066853]
[1768800067536,5.03193848,3202.3,3201.1,1.8066853]
[1768800068233,0.00246906,3202.5,3201.1,1.8066853]
[1768800068440,0.00246906,3202.5,3201.2,1.802]
[1768800068441,0.9710373,3202.4,3201.2,1.802]
[1768800068642,3.47013234,3202.4,3201.2,1.802]
[1768800069046,3.47013234,3202.4,3201.1,0.0046853]
[1768800069246,1.56180614,3202.2,3201.1,0.0046853]
[1768800069651,1.56180614,3202.2,3201.1,1.8066853]
[1768800070742,5.03193848,3202.2,3201.1,0.0046853]
[1768800075451,3.47013234,3202.1,3201.1,0.0046853]
[1768800075651,3.47013234,3202.1,3200.5,0.00240237]
[1768800075652,1.56180614,3201.2,3200.5,0.00240237]
[1768800075848,2.53259054,3202.0,3199.9,3.124]
[1768800075849,1.56180614,3201.0,3200.3,1.802]
[1768800076047,1.56180614,3201.3,3200.3,1.802]
[1768800076556,1.56180614,3201.3,3199.9,1.56180614]
[1768800076856,1.56180614,3201.3,3200.0,1.802]
[1768800077952,1.56180614,3201.3,3200.1,1.802]
[1768800078660,3.47013234,3201.4,3200.1,3.36380614]
[1768800079363,3.62636234,3201.9,3200.7,1.56180614]
[1768800079551,0.97497513,3201.8,3200.7,1.56180614]
[1768800079758,3.62636234,3201.9,3200.2,3.47900833]
[1768800079960,0.9749711,3201.8,3200.4,1.56180614]
[1768800080258,3.62636234,3201.9,3200.4,1.56180614]
[1768800080458,0.97480358,3201.8,3200.4,1.56180614]
[1768800080660,3.62636234,3201.9,3200.4,1.56180614]
[1768800080860,0.97480109,3201.8,3200.4,1.56180614]
[1768800081062,3.47013234,3201.9,3200.7,1.56180614]
[1768800081357,0.0046853,3201.5,3200.7,1.56180614]
[1768800081754,0.0046853,3201.5,3200.7,5.04081447]
[1768800082558,0.0046853,3201.5,3200.1,5.12974162]
[1768800082750,3.37519008,3201.5,3199.9,6.61226614]
[1768800083062,1.56180614,3201.3,3200.0,1.802]
[1768800083559,4.93699622,3201.5,3200.0,1.802]
[1768800083956,4.93699622,3201.5,3200.1,1.56180614]
[1768800084160,4.93699622,3201.5,3200.0,1.802]
[1768800084456,4.93699622,3201.5,3200.1,1.56180614]
[1768800084861,3.37050478,3201.4,3200.1,1.56180614]
[1768800085564,3.37050478,3201.4,3200.2,1.802]
[1768800086474,1.56180614,3201.3,3200.2,1.802]
[1768800087775,1.56180614,3201.1,3200.2,1.802]
[1768800088071,3.37050478,3201.2,3200.2,1.802]
[1768800090364,1.56180614,3200.6,3199.3,1.56180614]
[1768800090570,1.56180614,3200.6,3199.3,3.36380614]
[1768800091468,1.56180614,3200.6,3199.3,3.36782814]
[1768800092377,3.37050478,3200.9,3199.6,1.56180614]
[1768800092565,3.37050478,3201.3,3199.9,1.56180614]
[1768800092873,0.97453033,3201.2,3199.6,3.32774162]
[1768800093068,3.37050478,3201.3,3199.6,3.32774162]
[1768800093274,0.97431732,3201.2,3199.6,3.32774162]
[1768800093578,3.37050478,3201.2,3199.6,3.32774162]
[1768800093879,40.9609253,3201.5,3199.6,3.32774162]
[1768800094081,0.9742481,3201.4,3199.6,3.32774162]
[1768800094279,0.1609253,3201.5,3199.8,3.32774162]
[1768800094479,0.0046853,3201.5,3199.8,3.32774162]
[1768800095473,0.0046853,3201.5,3200.3,0.0046853]
[1768800097781,0.0046853,3201.5,3200.4,3.32774162]
[1768800099880,0.0046853,3201.5,3200.6,3.35154492]
[1768800100879,1.5655983,3202.5,3201.0,3.35154492]
[1768800101081,5.11938893,3202.1,3200.5,3.35154492]
[1768800101282,3.55625969,3201.9,3200.6,1.801]
[1768800101882,3.55625969,3201.9,3200.5,1.801]
[1768800102382,3.55625969,3201.9,3200.3,0.0046853]
[1768800102581,3.55625969,3202.3,3200.5,3.35154492]
[1768800102777,0.97630181,3202.2,3200.5,3.35154492]
[1768800102972,4.5325615,3202.1,3200.6,1.801]
[1768800103178,0.97630181,3202.0,3200.6,1.801]
[1768800103486,3.55625969,3202.1,3200.6,1.801]
[1768800103680,0.97645136,3202.0,3200.6,1.801]
[1768800103885,3.55625969,3202.1,3200.6,1.801]
[1768800104090,0.97645649,3202.0,3200.6,1.801]
[1768800104288,3.55625969,3202.1,3200.6,1.801]
[1768800104484,0.97660943,3202.0,3200.6,1.801]
[1768800104673,3.55625969,3202.1,3200.6,1.801]
[1768800104875,0.97660924,3202.0,3200.6,1.801]
[1768800105079,3.55625969,3202.1,3200.6,1.801]
[1768800105289,0.9766085,3202.0,3200.6,1.801]
[1768800105487,0.1562,3202.4,3200.7,3.35154492]
[1768800105680,4.53303836,3202.3,3200.7,3.35154492]
[1768800105881,0.97677867,3202.2,3200.7,3.35154492]
[1768800106087,4.53303836,3202.2,3200.6,1.801]
[1768800106289,0.97677867,3202.1,3200.6,1.801]
[1768800108292,0.97677867,3202.1,3200.7,1.801]
[1768800109989,0.97752313,3202.0,3200.7,1.801]
[1768800110190,3.55625969,3202.2,3200.7,1.801]
[1768800110389,0.97763307,3202.1,3200.7,1.801]
[1768800110587,0.97763307,3202.0,3200.7,1.801]
[1768800110798,0.97764498,3201.9,3200.7,1.801]
[1768800110990,3.55625969,3202.2,3200.7,1.801]
[1768800111186,0.97789225,3202.1,3200.7,1.801]
[1768800111387,0.97789225,3202.0,3200.7,1.801]
[1768800111694,0.97789225,3201.9,3200.7,5.15254492]
[1768800111892,3.55625969,3202.2,3200.7,5.15254492]
[1768800112193,0.97799572,3202.1,3200.7,5.15254492]
[1768800112394,0.97799572,3202.0,3200.7,5.15254492]
[1768800112695,0.1562,3202.4,3200.8,3.48310312]
[1768800112893,0.97820766,3202.3,3200.8,3.48310312]
[1768800113094,0.1562,3202.4,3200.8,3.48310312]
[1768800113393,0.97822624,3202.3,3200.8,3.48310312]
[1768800113593,0.1562,3202.4,3200.8,3.48310312]
[1768800113794,0.97804719,3202.3,3200.8,3.48310312]
[1768800113996,0.1562,3202.4,3200.8,3.48310312]
[1768800114193,0.97806436,3202.3,3200.8,3.48310312]
[1768800114385,6.35946906,3202.5,3200.8,3.48310312]
[1768800119101,0.00246906,3202.5,3200.8,3.48310312]
[1768800119598,0.00246906,3202.5,3201.0,3.48310312]
[1768800123598,0.00246906,3202.5,3201.1,1.8]
[1768800123800,0.00246906,3202.5,3201.2,3.48310312]
[1768800124393,0.00246906,3202.5,3201.3,1.8]
[1768800126400,0.00246906,3202.5,3200.8,3.48310312]
[1768800126700,0.97705182,3202.4,3200.8,5.28310312]
[1768800126893,3.55725422,3202.5,3200.8,5.28310312]
[1768800127097,0.97704815,3202.4,3200.9,3.48310312]
[1768800127292,3.55725422,3202.5,3200.9,3.48310312]
[1768800127496,0.97740012,3202.4,3200.9,3.48310312]
[1768800127692,0.15866906,3202.5,3200.9,3.48310312]
[1768800128096,0.9773086,3202.4,3200.9,3.48310312]
[1768800128305,0.15866906,3202.5,3200.9,3.48310312]
[1768800128492,0.97737312,3202.4,3200.9,3.48310312]
[1768800128697,0.15866906,3202.5,3200.9,3.48310312]
[1768800128903,0.97737334,3202.4,3200.9,3.48310312]
[1768800129206,0.15866906,3202.5,3200.9,3.48310312]
[1768800129504,0.9774584,3202.4,3200.9,3.48310312]
[1768800129704,0.15866906,3202.5,3200.9,3.48310312]
[1768800129899,0.97724523,3202.4,3200.9,3.48310312]
[1768800130100,0.00246906,3202.5,3200.9,3.48310312]
[1768800130302,0.00246906,3202.5,3201.2,3.48310312]
[1768800131103,1.5655983,3202.5,3201.2,1.8]
[1768800131501,0.00246906,3202.5,3201.2,1.8]
[1768800132003,3.40105422,3202.5,3200.7,3.48310312]
[1768800132209,3.40105422,3202.5,3201.0,1.8]
[1768800132600,5.93976698,3202.4,3200.7,3.48310312]
[1768800132799,0.97805258,3202.3,3200.9,1.8]
[1768800133001,0.97805258,3202.2,3200.8,1.8]
[1768800133199,4.9617144,3202.4,3200.8,1.8]
[1768800133507,0.97797549,3202.3,3200.8,1.8]
[1768800133700,0.97797549,3202.2,3200.8,1.8]
[1768800133896,4.9617144,3202.4,3200.8,1.8]
[1768800134102,0.97797504,3202.3,3200.8,1.8]
[1768800134302,0.97797504,3202.2,3200.8,1.8]
[1768800134502,4.9617144,3202.4,3200.8,1.8]
[1768800134702,0.9780283,3202.3,3200.8,1.8]
[1768800134903,0.9780283,3202.2,3200.8,1.8]
[1768800135103,0.97804179,3202.1,3200.8,1.8]
[1768800135303,4.9617144,3202.4,3200.8,1.8]
[1768800135503,0.97808471,3202.3,3200.8,1.8]
[1768800135709,0.97808471,3202.2,3200.8,1.8]
[1768800136003,0.97808471,3202.1,3200.8,5.28310312]
[1768800136204,40.80246906,3202.5,3200.9,3.48310312]
[1768800136515,0.00246906,3202.5,3201.7,3.48310312]
[1768800136711,0.00246906,3202.5,3201.7,3.48613633]
[1768800138605,0.00246906,3202.5,3201.7,5.28613633]
[1768800139007,0.00246906,3202.5,3201.8,3.48310312]
[1768800139218,6.51316,3203.3,3201.8,3.48310312]
[1768800139419,0.97854225,3203.2,3201.8,3.48310312]
[1768800139619,0.97854225,3203.1,3201.8,3.48310312]
[1768800139813,0.97854225,3203.0,3201.8,3.48310312]
[1768800140008,6.51316,3203.3,3202.2,0.0046853]
[1768800140318,0.97818858,3203.2,3202.2,0.0046853]
[1768800140519,0.97818858,3203.1,3202.2,0.0046853]
[1768800140708,0.00249746,3203.3,3202.2,3.48778842]
[1768800143402,2.95194651,3204.3,3202.4,3.53128827]
[1768800143609,0.97752609,3204.2,3202.4,3.53128827]
[1768800143808,0.97752609,3204.1,3202.4,3.53128827]
[1768800144006,3.29656571,3202.6,3200.3,3.53128827]
[1768800144215,1.56312924,3202.2,3200.3,3.53128827]
[1768800144415,0.97752609,3202.1,3200.3,3.53128827]
[1768800144611,1.56312924,3202.3,3200.3,3.53128827]
[1768800144813,0.97676731,3202.2,3200.5,3.53128827]
[1768800145121,0.97676731,3202.1,3200.5,3.53436643]
[1768800145325,0.00288642,3202.2,3200.5,3.53436643]
[1768800145616,0.97661916,3202.1,3200.5,3.53436643]
[1768800145819,0.00288642,3202.2,3200.5,3.53436643]
[1768800146013,0.97661988,3202.1,3200.5,3.53436643]
[1768800146202,0.00288642,3202.2,3200.5,3.53436643]
[1768800146407,0.97649295,3202.1,3200.5,3.53436643]
[1768800146618,0.00288642,3202.2,3200.5,3.53436643]
[1768800146811,0.97649205,3202.1,3200.5,3.53436643]
[1768800147018,0.00288642,3202.2,3200.5,3.53436643]
[1768800149711,0.0046853,3201.7,3200.5,3.53436643]
[1768800150913,0.00288642,3202.2,3200.5,3.53436643]
[1768800151113,0.00288642,3202.2,3200.9,3.53128827]
[1768800151412,0.00288642,3202.2,3201.1,3.53128827]
[1768800154422,0.00288642,3202.2,3201.1,6.65528827]
[1768800154720,0.00288642,3202.2,3201.2,3.53128827]
[1768800156621,0.00288642,3202.2,3201.2,5.33028827]
[1768800157815,0.00288642,3202.2,3201.2,3.53128827]
[1768800158117,0.00288642,3202.2,3201.2,5.33028827]
[1768800159015,0.00288642,3202.2,3201.2,1.799]
[1768800159918,0.00288642,3202.2,3201.3,3.4079678]
[1768800163018,0.00288642,3202.2,3201.4,1.799]
[1768800164427,0.00288642,3202.2,3201.4,5.2069678]
[1768800164924,0.00288642,3202.2,3201.5,3.4079678]
[1768800172635,1.56156935,3202.9,3201.5,3.4079678]
[1768800173737,1.56511762,3202.9,3201.5,3.4079678]
[1768800177042,1.56156935,3202.8,3201.5,3.4079678]
[1768800180446,0.00354827,3202.9,3201.5,3.4079678]
[1768800180646,1.56511762,3202.9,3201.5,3.4079678]
[1768800181848,0.00354827,3202.9,3201.5,3.4079678]
[1768800182150,0.00354827,3202.9,3202.0,3.60429171]
[1768800182738,0.00354827,3202.9,3201.6,1.56156935]
[1768800182739,1.56511762,3202.9,3201.9,1.799]
[1768800187563,0.00354827,3202.9,3201.9,1.799]
[1768800189257,1.56156935,3202.7,3201.6,3.60429171]
[1768800189459,1.56156935,3202.7,3201.7,1.799]
[1768800190064,0.00354827,3202.9,3201.8,3.60429171]
[1768800192769,0.00354827,3202.9,3201.8,5.40229171]
[1768800192969,1.56156935,3202.7,3201.8,5.40229171]
[1768800196479,0.00354827,3202.9,3201.8,5.40229171]
[1768800196679,0.97666571,3202.8,3201.8,3.60429171]
[1768800196881,0.00354827,3202.9,3201.9,1.798]
[1768800197068,0.97666498,3202.8,3201.9,1.798]
[1768800197375,0.00354827,3202.9,3201.9,1.798]
[1768800197575,0.97674577,3202.8,3201.9,1.798]
[1768800197777,0.00354827,3202.9,3201.9,1.798]
[1768800197969,0.97674472,3202.8,3201.9,1.798]
[1768800198168,0.00354827,3202.9,3201.9,1.798]
[1768800198369,0.97684366,3202.8,3201.9,1.798]
[1768800198570,0.00354827,3202.9,3201.9,1.798]
[1768800198769,0.9768417,3202.8,3201.9,1.798]
[1768800198976,0.00354827,3202.9,3201.9,1.798]
[1768800199273,0.97684482,3202.8,3201.9,5.40229171]
[1768800199482,0.00354827,3202.9,3201.9,5.40229171]
[1768800199666,0.97546611,3202.8,3201.9,5.40229171]
[1768800199866,0.00354827,3202.9,3201.9,5.40229171]
[1768800200075,0.97545243,3202.8,3201.9,5.40229171]
[1768800200378,0.00354827,3202.9,3201.9,5.40229171]
[1768800200579,0.97559411,3202.8,3202.0,3.60429171]
[1768800200782,0.00354827,3202.9,3202.0,3.60429171]
[1768800200978,0.97559175,3202.8,3202.0,3.60429171]
[1768800201283,0.00354827,3202.9,3202.0,3.60429171]
[1768800201576,0.97577322,3202.8,3202.0,3.60429171]
[1768800201778,0.00354827,3202.9,3202.0,3.60429171]
[1768800201979,0.97577368,3202.8,3202.0,3.60429171]
[1768800202181,0.00354827,3202.9,3202.0,3.60429171]
[1768800202381,0.97604089,3202.8,3202.0,3.60429171]
[1768800202682,0.00354827,3202.9,3202.0,3.60429171]
[1768800202878,0.97594738,3202.8,3202.0,3.60429171]
[1768800203073,0.00354827,3202.9,3202.0,3.60429171]
[1768800203273,0.97591795,3202.8,3202.0,3.60429171]
[1768800203467,0.00354827,3202.9,3202.0,3.60429171]
[1768800203675,0.97592388,3202.8,3202.0,3.60429171]
[1768800203981,0.00354827,3202.9,3202.0,3.60429171]
[1768800204180,0.97591685,3202.8,3202.0,3.60429171]
[1768800204383,0.00354827,3202.9,3202.0,3.60429171]
[1768800204583,0.9759239,3202.8,3202.0,3.60429171]
[1768800204784,0.00354827,3202.9,3202.0,3.60429171]
[1768800204984,0.97592122,3202.8,3202.0,3.60429171]
[1768800205280,0.00354827,3202.9,3202.0,3.60429171]
[1768800205482,0.97592833,3202.8,3202.0,3.60429171]
[1768800205675,0.00354827,3202.9,3202.0,3.60429171]
[1768800205878,0.97592863,3202.8,3202.0,3.60429171]
[1768800206078,0.00354827,3202.9,3202.0,3.60429171]
[1768800206279,0.97593945,3202.8,3202.0,3.60429171]
[1768800206479,0.00354827,3202.9,3202.0,3.60429171]
[1768800206681,0.9759433,3202.8,3202.0,3.60429171]
[1768800206980,0.00354827,3202.9,3202.0,3.60429171]
[1768800207180,0.97591418,3202.8,3202.0,3.60429171]
[1768800207383,0.00354827,3202.9,3202.0,3.60429171]
[1768800207684,0.97592644,3202.8,3202.0,3.60429171]
[1768800207876,0.00354827,3202.9,3202.0,3.60429171]
[1768800208078,0.97575685,3202.8,3202.0,3.60429171]
[1768800208283,0.00354827,3202.9,3202.0,3.60429171]
[1768800211997,1.105806,3203.3,3202.0,3.60429171]
[1768800212290,2.66737535,3203.3,3202.0,3.60429171]
[1768800212686,1.105806,3203.3,3202.0,3.60429171]
[1768800212884,1.56156935,3203.2,3202.0,3.60429171]
[1768800213078,1.56420862,3203.2,3202.0,3.60429171]
[1768800213279,0.00263927,3203.2,3202.0,3.60429171]
[1768800213484,1.56420862,3203.2,3202.0,3.60429171]
[1768800214892,0.00263927,3203.2,3202.0,3.60429171]
[1768800217591,2.66977943,3203.2,3201.6,3.60962599]
[1768800217799,2.66977943,3203.2,3201.7,1.798]
[1768800217987,1.56133416,3202.7,3200.9,3.60962599]
[1768800218193,1.56133416,3202.7,3201.1,3.60962599]
[1768800218795,3.55537782,3202.8,3201.1,3.60962599]
[1768800220395,0.97093415,3202.7,3201.1,3.60962599]
[1768800220593,0.97093415,3202.6,3201.1,3.60962599]
[1768800220899,3.55537782,3202.8,3201.1,3.60962599]
[1768800221095,0.97094904,3202.7,3201.1,3.60962599]
[1768800221295,0.97094904,3202.6,3201.1,3.60962599]
[1768800221496,3.55537782,3202.8,3201.1,3.60962599]
[1768800221692,0.9708154,3202.7,3201.1,3.60962599]
[1768800221899,0.9708154,3202.6,3201.2,1.798]
[1768800222095,0.9708154,3202.5,3201.2,1.798]
[1768800222295,3.55537782,3202.8,3201.2,1.798]
[1768800222490,0.97064923,3202.7,3201.2,1.798]
[1768800222697,0.97064923,3202.6,3201.2,5.37698542]
[1768800222900,3.55537782,3202.8,3201.2,5.37698542]
[1768800223202,0.97063937,3202.7,3201.2,5.37698542]
[1768800223403,0.97063937,3202.6,3201.2,5.37698542]
[1768800223695,3.55537782,3202.8,3201.2,5.37698542]
[1768800223902,0.97051172,3202.7,3201.2,5.37698542]
[1768800224088,0.97051172,3202.6,3201.2,5.37698542]
[1768800224295,3.55537782,3202.8,3201.2,5.37698542]
[1768800224496,0.97038601,3202.7,3201.2,5.37698542]
[1768800224801,0.97038601,3202.6,3201.2,5.37698542]
[1768800225004,3.55537782,3202.8,3201.2,5.37698542]
[1768800225203,0.97039309,3202.7,3201.2,5.37698542]
[1768800225403,0.97039309,3202.6,3201.2,5.37698542]
[1768800225600,3.55537782,3202.8,3201.2,5.37698542]
[1768800225901,0.97024055,3202.7,3201.2,5.37698542]
[1768800226099,0.97024055,3202.6,3201.2,5.37698542]
[1768800226306,3.55537782,3202.8,3201.2,5.37698542]
[1768800226498,0.97016625,3202.7,3201.2,5.37698542]
[1768800226698,0.97016625,3202.6,3201.3,1.797]
[1768800226900,3.55537782,3202.8,3201.3,1.797]
[1768800227104,0.97017766,3202.7,3201.3,5.37598542]
[1768800227301,0.97017766,3202.6,3201.3,5.37598542]
[1768800227501,3.55537782,3202.8,3201.4,3.57898542]
[1768800227802,1.71750416,3203.0,3201.4,3.57898542]
[1768800227999,0.97010206,3202.9,3201.4,3.57898542]
[1768800228200,0.97010206,3202.8,3201.4,3.57898542]
[1768800228500,0.97010206,3202.7,3201.4,3.57898542]
[1768800228708,1.71750416,3203.0,3201.4,3.57898542]
[1768800228908,0.97009784,3202.9,3201.4,3.57898542]
[1768800229106,0.97009784,3202.8,3201.4,3.57898542]
[1768800229295,0.97009784,3202.7,3201.4,3.57898542]
[1768800229500,1.71750416,3203.0,3201.4,3.57898542]
[1768800229700,0.96935596,3202.9,3201.4,3.57898542]
[1768800229901,0.96935596,3202.8,3201.4,3.57898542]
[1768800230201,0.96935596,3202.7,3201.4,3.57898542]
[1768800230494,1.71750416,3203.0,3201.4,3.57898542]
[1768800230703,0.96945945,3202.9,3201.4,3.57898542]
[1768800230995,0.96945945,3202.8,3201.4,3.57898542]
[1768800231200,0.96945945,3202.7,3201.4,3.57898542]
[1768800231398,1.71750416,3203.0,3201.4,3.57898542]
[1768800231602,0.96946749,3202.9,3201.4,3.57898542]
[1768800231805,0.96946749,3202.8,3201.4,3.57898542]
[1768800232000,0.96946749,3202.7,3201.4,3.57898542]
[1768800232208,1.71750416,3203.0,3201.4,3.57898542]
[1768800232408,0.96947841,3202.9,3201.4,3.57898542]
[1768800232707,0.96947841,3202.8,3201.4,3.57898542]
[1768800232908,0.96947841,3202.7,3201.4,3.57898542]
[1768800233107,1.71750416,3203.0,3201.4,3.57898542]
[1768800233311,0.96950658,3202.9,3201.4,3.57898542]
[1768800233609,0.96950658,3202.8,3201.4,3.57898542]
[1768800233811,0.96950658,3202.7,3201.4,3.57898542]
[1768800234112,1.71750416,3203.0,3201.4,3.57898542]
[1768800234307,0.9696189,3202.9,3201.4,3.57898542]
[1768800234508,0.9696189,3202.8,3201.4,3.57898542]
[1768800234708,0.9696189,3202.7,3201.4,3.57898542]
[1768800234911,1.71750416,3203.0,3201.4,3.57898542]
[1768800235211,0.96961574,3202.9,3201.4,3.57898542]
[1768800235410,0.96961574,3202.8,3201.4,3.57898542]
[1768800235611,0.96961574,3202.7,3201.4,3.57898542]
[1768800235811,0.96961574,3202.6,3201.4,3.57898542]
[1768800236010,2.82331016,3203.0,3201.4,3.57898542]
[1768800236212,0.96957428,3202.9,3201.4,3.57898542]
[1768800236513,0.96957428,3202.8,3201.4,3.57898542]
[1768800236814,0.96957428,3202.7,3201.4,3.57898542]
[1768800237011,0.96957428,3202.6,3201.4,3.57898542]
[1768800237200,2.82331016,3203.0,3201.4,3.57898542]
[1768800237405,0.96961876,3202.9,3201.4,3.57898542]
[1768800237607,0.96961876,3202.8,3201.4,3.57898542]
[1768800237807,2.82331016,3203.0,3201.4,3.57898542]
[1768800237808,0.96961876,3202.7,3201.5,3.60792127]
[1768800238007,0.96961876,3202.6,3201.5,3.60792127]